Cogmind - Beta 16 @@@ ROGUE MODE // 2025.12.31 @ 20:48:49 Player: Bity Result: Destroyed by G-34 Mercenary with Small Laser Performance ------------- Evolutions (1) 500 Regions Visited (2) 400 Robots Destroyed (23) 115 Value Destroyed (384) 384 Prototype IDs (0) 0 Alien Tech Used (0) 0 Bonus (0) 0 TOTAL SCORE: 1399 Bonus ------- None Cogmind --------- Core Integrity 0/400 Matter 300/300 Energy 100/100 System Corruption 0% Temperature Cool (6) Movement Flying (40) Location -9/Materials Parts ------- > --- POWER (1) -------- (None) > --- PROPULSION (4) --- Flight Unit > --- UTILITY (2) ------ (None) > --- WEAPON (2) ------- Heavy Hammer > --- INVENTORY (5) ---- Large Storage Unit Signal Interpreter Targeting Computer EMP Blaster EMP Blaster Peak State ------------ > --- POWER ------------ Light Ion Engine > --- PROPULSION ------- VTOL Module VTOL Module VTOL Module VTOL Module > --- UTILITY ---------- Heat Sink Medium Storage Unit > --- WEAPON ----------- EMP Blaster EMP Blaster > --- INVENTORY -------- Ion Engine Aluminum Leg Aluminum Leg Large Storage Unit Signal Interpreter Targeting Computer EM Pulse Gun Mining Laser [Rating: 15] Favorites ----------- Power Light Ion Engine Engine Light Ion Engine Propulsion Aluminum Leg Leg Aluminum Leg Flight Unit VTOL Module Utility Heat Sink Device Heat Sink Storage Medium Storage Unit Weapon Assault Rifle Energy Gun Medium Laser Energy Cannon Beam Cannon Ballistic Gun Assault Rifle Launcher EMP Blaster Impact Weapon Heavy Hammer Build | -11 -10 -9 ------- Run | Yrd Mat Mat Slots Evolved 2 | . . 2 Power . | . . . Propulsion 2 | . . 2 Utility . | . . . Weapon . | . . . Parts Attached 21 | 2 7 12 Power 1 | . . 1 Engine 1 | . . 1 Core . | . . . Reactor . | . . . Propulsion 7 | . . 7 Treads . | . . . Leg 1 | . . 1 Wheel . | . . . Hover . | . . . Flight 6 | . . 6 Utility 4 | 1 2 1 Device 2 | 1 1 . Storage 2 | . 1 1 Processor . | . . . Hackware . | . . . Protection . | . . . Artifact . | . . . Weapon 9 | 1 5 3 Energy Gun 2 | 1 1 . Energy Cannon 2 | . . 2 Ballistic Gun 2 | . 2 . Ballistic Cannon . | . . . Launcher 2 | . 2 . Special Weapon . | . . . Impact Weapon 1 | . . 1 Slashing Weapon . | . . . Piercing Weapon . | . . . Special Melee Weapon . | . . . Unidentified Prototypes . | . . . Parts Lost 12 | . 1 11 Power 2 | . . 2 Propulsion 6 | . . 6 Utility 2 | . 1 1 Weapon 2 | . . 2 Highest Loss Streak 10 | . 1 10 To Critical Strikes . | . . . Average Backups 8 | 6 8 8 Power . | 1 1 . Propulsion 2 | 4 3 . Utility 2 | . 2 3 Weapon 2 | 1 2 3 Tool/Special . | . . . Unused Backups 12 | . 4 8 Power . | . . . Propulsion 4 | . 2 2 Utility 6 | . 2 4 Weapon 2 | . . 2 Tool/Special . | . . . Average Slot Usage (%) 87 | . 99 66 Engine 11 | . 14 6 Leg 18 | . 28 2 Flight 11 | . . 29 Device 12 | . 13 9 Storage 12 | . 14 9 Energy Gun 4 | . 7 . Energy Cannon 1 | . . 3 Ballistic Gun 12 | . 19 . Launcher 1 | . . 1 Impact Weapon 1 | . . 3 Peak Build Rating 15 | 7 10 15 Average Rating 8 | 6 7 9 On Entrance 7 | 6 7 10 Avg Prop Armor Cover (%) . | . . . Naked Turns . | . . . Heaviest Build 22 | 13 22 17 Greatest Support 20 | 20 20 16 Greatest Overweight (x) 1 | . 1 1 Average Overweight (x) . | . . . Largest Inventory Capacity 10 | 8 10 10 Average Capacity 9 | 8 9 9 Most Carried 10 | 7 10 10 Average Carried 8 | 6 9 8 Final Capacity 10 | 8 10 5 Final Carried 10 | 7 10 5 Class Distribution -------------------- 90% | Mutant 9% | Sprinter Dominant Class ---------------- Mutant | -10/Materials Mutant | -9/Materials Resources | -11 -10 -9 ----------- Run | Yrd Mat Mat Matter Collected 549 | 255 154 140 Remotely . | . . . Salvage Created 618 | 102 304 212 Parts 43 | 8 26 9 Haulers Intercepted 2 | . 1 1 Recyclers Shooed 1 | . 1 . Parts Field Recycled . | . . . Retrieved Matter . | . . . Parts Self-Destructed . | . . . Prevented . | . . . Parts Restored . | . . . Kills | -11 -10 -9 ------- Run | Yrd Mat Mat Combat Hostiles Destroyed 15 | . 9 6 Melee 1 | . . 1 Guns 9 | . 9 . Cannons 3 | . . 3 Classes Destroyed 8 | 2 5 1 Worker 1 | . 1 . Tunneler 2 | 2 . . Hauler 2 | . 1 1 Recycler 1 | 1 . . Watcher 2 | . 2 . Swarmer 9 | . 6 3 Grunt 5 | . 3 2 Duelist 1 | . . 1 Best Kill Streak 4 | 1 4 3 Combat Bots Only 5 | . 3 5 Max Kills in Single Turn 2 | 1 2 1 Gunslinging 1 | . 1 . Exploded . | . . . Melee 1 | . . 1 Uniques/NPCs Destroyed . | . . . Combat | -11 -10 -9 -------- Run | Yrd Mat Mat Hostile Shots Fired 159 | . 39 120 Missed 45 | . 10 35 Hits 114 | . 29 85 Melee 10 | . . 10 Projectile 104 | . 29 75 Critical Strikes 1 | . . 1 Damage Taken 1328 | . 270 1058 Core 461 | . 58 403 Absorbed by Shields . | . . . Core Remaining (%) 88 | 100 76 . Volleys Fired 51 | 15 26 10 Largest 2 | 2 2 2 Hottest 120 | 70 70 120 Shots Fired 98 | 30 52 16 Gun 82 | 30 52 . Cannon 16 | . . 16 Launcher . | . . . Special . | . . . Kinetic 48 | 15 33 . Thermal 50 | 15 19 16 Explosive . | . . . Electromagnetic . | . . . Robot Hit Streak 9 | 8 9 4 Robot Miss Streak 4 | 3 4 2 Penetration Max . | . . . Secondary Targets 3 | . 3 . Max Gunslinging Chain 1 | . 1 . Shots Hit Robots 81 | 21 35 25 Core Hits 27 | 4 18 5 Critical Kills . | . . . Critical Parts Destroyed 1 | . . 1 Critical Strikes 2 | 1 . 1 Burn 1 | 1 . . Smash 1 | . . 1 Melee Attacks 24 | . . 24 Impact 24 | . . 24 Slashing . | . . . Piercing . | . . . Sneak Attacks 1 | . . 1 Combat Hostiles . | . . . Follow-up Attacks . | . . . Damage Inflicted 1466 | 273 458 735 Guns 731 | 273 458 . Cannons 229 | . . 229 Explosions . | . . . Melee 506 | . . 506 Ramming . | . . . Kinetic 405 | 149 256 . Thermal 555 | 124 202 229 Explosive . | . . . Electromagnetic . | . . . Impact 506 | . . 506 Slashing . | . . . Piercing . | . . . Highest Corruption . | . . . Average Corruption . | . . . Corruption Purged . | . . . Corruption Blocked . | . . . Overload Shots . | . . . Overflow Damage 73 | . . 73 Projectiles 15 | . . 15 Explosions . | . . . Melee 58 | . . 58 Knockbacks 3 | . . 3 Impact 3 | . . 3 Kinetic . | . . . Secondary . | . . . Self-Inflicted Damage . | . . . Shots . | . . . Rammed . | . . . Targets Rammed . | . . . Kicked . | . . . Crushed . | . . . Highest Temperature 147 | 99 147 131 Average Temperature 50 | 42 60 50 Received Heat Transfer 348 | . 90 258 Siege Activations . | . . . Martial Activations . | . . . Shielding Activations . | . . . Robots Disrupted . | . . . Combat Hostiles . | . . . Robots Corrupted 3 | . . 3 Combat Hostiles 2 | . . 2 Parts Fried 2 | . . 2 Impact Corruptions 6 | . . 6 Robots Melted . | . . . Combat Hostiles . | . . . Parts Melted 5 | 1 3 1 Heat Transferred 1470 | 444 545 481 Parts Sabotaged . | . . . Parts Stolen . | . . . Parts Stripped . | . . . Power Chain Reactions . | . . . Alert | -11 -10 -9 ------- Run | Yrd Mat Mat Maximum Alert Level . | . . . Low Security (%) 100 | 100 100 100 Level 1 . | . . . Level 2 . | . . . Level 3 . | . . . Level 4 . | . . . Level 5 . | . . . High Security . | . . . Max Security . | . . . Peak Influence 129 | 5 129 113 Initial 30 | . . 30 Average 50 | 2 52 61 Influence Increases 531 | 15 243 273 Destroy 0b10 Robot/C 300 | . 180 120 Destroy 0b10 Robot/NC 40 | 15 20 5 Destroy Leader 58 | . 36 22 Successful Hack 12 | . 7 5 Disable Machine 30 | . . 30 Destroy Structure 1 | . . 1 Partial Spotted 30 | . . 30 Lose Combat Pursuer 60 | . . 60 Influence Decreases 448 | 15 170 263 Entered New Map 43 | . . 43 Time Decay 285 | 15 160 110 Lost Part 120 | . 10 110 Squads Dispatched 3 | . 2 1 Investigation 1 | . 1 . Extermination . | . . . Reinforcement 2 | . 1 1 Assault . | . . . Garrison . | . . . Intercept . | . . . Searches Triggered . | . . . Construction Impeded . | . . . Haulers Reinforced . | . . . Active Scanning Responses . | . . . Cargo Convoy Interrupts . | . . . Stealth | -11 -10 -9 --------- Run | Yrd Mat Mat Distress Signals 1 | . . 1 Communications Jammed . | . . . Distress Signals . | . . . Times Spotted 28 | . 13 15 Peak Tracking Total 7 | . 4 7 Tactical Retreats 3 | . . 3 Traps | -11 -10 -9 ------- Run | Yrd Mat Mat Traps Triggered . | . . . Indirectly . | . . . Trap Hack Attempts . | . . . Triggered . | . . . Disarmed . | . . . Reprogrammed . | . . . Reused . | . . . Traps Extracted . | . . . Installed . | . . . Triggered . | . . . Machines | -11 -10 -9 ---------- Run | Yrd Mat Mat Machines Disabled 2 | . . 2 Max in Single Turn 1 | . . 1 Machines Repaired . | . . . Machines Dismantled . | . . . Machines Sabotaged . | . . . Overloaded Fab Kills . | . . . Hacking | -11 -10 -9 --------- Run | Yrd Mat Mat Machines Accessed 3 | . 1 2 Terminals 2 | . 1 1 Fabricators . | . . . Repair Stations . | . . . Recycling Units 1 | . . 1 Scanalyzers . | . . . Garrison Access . | . . . Total Hacks 6 | . 3 3 Successful 4 | . 2 2 Failed 2 | . 1 1 Catastrophic . | . . . Database Lockouts . | . . . Manual 3 | . 1 2 Terminals 5 | . 3 2 Fabricators . | . . . Repair Stations . | . . . Recycling Units 1 | . . 1 Scanalyzers . | . . . Garrison Access . | . . . Terminal Hacks 1 | . 1 . Branch Access Points 1 | . 1 . Fabricator Hacks . | . . . Repair Station Hacks . | . . . Recycling Unit Hacks 1 | . . 1 Report Inventory 1 | . . 1 Scanalyzer . | . . . Garrison Access Hacks . | . . . Unauthorized Hacks 2 | . 1 1 Terminals 2 | . 1 1 Botnet 2 | . 1 1 Fabricators . | . . . Repair Stations . | . . . Recycling Units . | . . . Scanalyzers . | . . . Garrison Access . | . . . Data Cores Recovered . | . . . Used . | . . . Hacking Detections 2 | . 1 1 Full Trace Events 1 | . 1 . Feedback Events . | . . . Feedback Blocked . | . . . Robot Schematics Acquired . | . . . Robots Built . | . . . Authchips . | . . . Time . | . . . Total Robot Build Rating . | . . . Part Schematics Acquired . | . . . Parts Built . | . . . Authchips . | . . . Time . | . . . Total Part Build Rating . | . . . Part Studies Acquired . | . . . Parts Repaired . | . . . Time . | . . . Parts Recycled . | . . . Recycled Matter . | . . . Retrieved Matter . | . . . Retrieved Components . | . . . Parts Scanalyzed . | . . . Part Schematics Acquired . | . . . Parts Damaged . | . . . Bothacking | -11 -10 -9 ------------ Run | Yrd Mat Mat Used RIF Installer . | . . . Robots Hacked . | . . . Non-combat . | . . . Combat . | . . . Robot Hacks Applied . | . . . Relay Couplers Released . | . . . Fabnet Peak Effective % . | . . . Robots Rewired . | . . . Allies Hacked . | . . . Hacks Repelled . | . . . Allies | -11 -10 -9 -------- Run | Yrd Mat Mat Total Allies . | . . . Largest Group . | . . . Highest-Rated Group . | . . . Highest-Rated Ally . | . . . Total Orders . | . . . Ally Attacks . | . . . Total Damage . | . . . Kills . | . . . Allies Corrupted . | . . . Allies Melted . | . . . Intel | -11 -10 -9 ------- Run | Yrd Mat Mat Active Infowar (turns) 131 | 2 129 . Seismic 131 | 2 129 . Robot Analysis Total . | . . . Derelict Logs Recovered . | . . . Drone Launches . | . . . Drone Recoveries . | . . . Exploration | -11 -10 -9 ------------- Run | Yrd Mat Mat Turns Passed 742 | 80 427 235 Spaces Moved 488 | 25 256 207 Core . | . . . Treads . | . . . Legs 281 | 25 256 . Wheels . | . . . Hover . | . . . Flight 207 | . . 207 Fastest Speed 26 | 120 120 26 Average Speed 82 | 120 121 31 Slowest Speed 190 | 120 190 109 Overloaded Moves . | . . . Propulsion Burnouts . | . . . Robots Hopped 8 | . . 8 Potential Cave-ins . | . . . Cave-ins Triggered . | . . . Exploration Rate (%) 17 | 3 34 16 Regions Visited 2 Branch Regions . Pre-discovered Areas . | . . . Known Exits Taken . | . . . Unknown Exits Taken 2 | 1 1 . Scrap Searched . | . . . Spaces Dug 1 | . . 1 Terrain Destroyed 1 | . . 1 Melee 1 | . . 1 Projectile . | . . . AOE . | . . . Terrain Rammed . | . . . Walls Destroyed . | . . . Machines Disabled . | . . . Actions | -11 -10 -9 --------- Run | Yrd Mat Mat Total 688 | 44 329 315 Wait 71 | 2 18 51 Move 472 | 24 255 193 Hop 6 | . . 6 Pick Up 14 | 1 10 3 Fast Attach 8 | 1 4 3 Attach 11 | . . 11 Detach 7 | . . 7 Swap 7 | 1 3 3 Drop 17 | . 13 4 Fire 51 | 15 26 10 Melee 24 | . . 24 Ram . | . . . Kick . | . . . Crush . | . . . Escape Stasis . | . . . Rewire . | . . . Trap . | . . . Miscellaneous . | . . . Route ------- -11/Scrapyard -10/Materials (discovered 2 exits: *Mat / Min) -9/Materials History --------- Turn | Location | Event 1 | -11/Scrapyard | Discovered new exit (range 3) 81 | -11/Scrapyard | Entered Materials 181 | -10/Materials | Identified exit to Mines 305 | -10/Materials | Build established: Mutant 449 | -10/Materials | Discovered new exit (range 4) 508 | -10/Materials | Entered another Materials area 508 | -9/Materials | Evolved 2 slots: Propulsion x2 699 | -9/Materials | Core integrity fell below 50% 712 | -9/Materials | Core integrity fell below 20% 743 | -9/Materials | Destroyed by G-34 Mercenary with Small Laser Last Messages --------------- 00705_ L-31 Rogue system corrupted by crushing effect. 00705_ Ion Engine destroyed. 00706_ Heat Sink destroyed. 00710_ Destroyed Melee Analysis Suite. 00710_ L-31 Rogue system corrupted by crushing effect. 00711_ L-31 Rogue system terminally corrupted. 00711_ Imp. Ion Engine fried. 00712_ Acquired 25 matter. 00714_ Acquired 10 matter. 00714_ Dropped Med. Storage Unit. 00721_ Flight Unit destroyed. 00725_ G-34 Mercenary destroyed. 00727_ Acquired Flight Unit. 00729_ Acquired 10 matter. 00729_ Destroyed Heat Sink. 00729_ G-34 Mercenary system corrupted by crushing effect. 00729_ G-34 Mercenary knocked back. Map ----- +----------------------------------------------------+ | # # #??? #????????????????????????? | | # # #??? #????????????????????????? | | #####"# #####+####### #????????????????????????? | | + ## #????????????????????????? | | """ # ## #????????????????????????? | | """ # ## #????????????????????????? | | """ # ############+####????????????????????????? | | # # [ ## #????????????????????????? | | ! # + ##" = //#????????????????????????? | | ####### # ##T ! /#????????????????????????? | | ??????# # """ ##" !/[#????????????????????????? | | ??????# #? """ ## #????????????????????????? | | ??????# #? """ ##/#######????????????????????????? | | ??????# #??####?# #####??????????????????????????? | | ??????# #???????# !!#??????????????????????????? | | ??????# ######### !!#??????????????????????????? | | ??????# % !!#??????????????????????????? | | ?????##+######## !!#??????????????????????????? | | ?????# # ==#??????????????????????????? | | ?????# # ==#??????????????????????????? | | ?????# # #####??????????????????????????? | | ?????#! # #??????????????????????????????? | | ?????# # ###############????????????????? | | ?????# + # """ """ #????????????????? | | ?????# # # """ g" #????????????????? | | ?????# # # "" "@" #????????????????? | | ?????########### # [ [[%= #????????????????? | | ?????# # # % !%[]]|#????????????????? | | ?????# # + % *%!!#????????????????? | | ?????# # ###############????????????????? | | ?????# # ##### ###???????????????????? | | ?????# """ """ # #????????????????? | | ?????# """ """ # T ???????????????? | | ?????# """ """ # ##### ####??????????????????? | | ?????# # #??????###?????????????????????? | | ???#########/### #??????????????????????????????? | | ???# # #??????????????????????????????? | | ???# # #??????????????????????????????? | | ???#""" + ##+#####????????????????????????????? | | ???#""" # # #????????????????????????????? | | ???#""" # # #????????????????????????????? | | ???# ?#### #????????????????????????????? | | ???######????# #????????????????????????????? | | ?????????????# #????????????????????????????? | | ?????????????# #????????????????????????????? | | ?????????????########????????????????????????????? | | ?????????????????????????????????????????????????? | | ?????????????????????????????????????????????????? | | ?????????????????????????????????????????????????? | | | +----------------------------------------------------+ Best States ------------- Heat Dissipation 38 Energy Generation 10 Energy Capacity 250 Matter Stores 300 Matter Capacity 300 Sight Range 16 Terrain Scan Density 10 Evasion (%) 64 Item Schematics ----------------- None Robot Schematics ------------------ None Fabricated ------------ Nothing Repaired ---------- Nothing Studied --------- None Alien Tech Used ----------------- None Achievements -------------- None Challenges ------------ None Game ------ Seed BraceGravitonFacilitator Manual? 0 Play Time 00:10:27 Cumulative 57.9 hours Start 2025.12.31 @ 20:40:14 End 2025.12.31 @ 20:48:49 Sessions 1 Manual Loads 0 Difficulty Rogue Special Mode None Game No. 76 Rogue 76 Adventurer 0 Explorer 0 Win Type - Total 1 Types 1/0/0/0/0/0/0/0/0/0 Lore% 41 Gallery% 46 Achievement% 36 Wizard Run 0 Options --------- Layout 2 ASCII 0 Keyboard 1 Movement Numpad Keybinds 0 Fullscreen 2 Font 24/Smallcaps Map View 50x44 Zoom Use 0% Tactical HUD 1 Map Filters NONE Filters NONE Steam 1 RUN: f91f968d-5478-43e5-9857-787af8d6f8d4